fUST/lending_fUST_20250820
["ID","MTS","AMOUNT","RATE_DAILY","PERIOD"]
[380335409,1755693032455,-480.0,0.00023455,2]
[380335410,1755693032464,-480.0,0.00023455,2]
[380335411,1755693032474,-480.0,0.00023455,2]
[380335412,1755693032483,-525.98676636,0.0002347,2]
[380335413,1755693032493,-2916.66,0.00023471,2]
[380335414,1755693032502,-8000.0,0.00023499,3]
[380335415,1755693032511,-749.88962708,0.000235,2]
[380335416,1755693032521,-2351.11359892,0.000235,2]
[380335417,1755693032530,-1000.0,0.000235,2]
[380335418,1755693032539,-152.7,0.00023523,5]
[380335419,1755693032549,-151.32571547,0.00023586,2]
[380335420,1755693032558,-409.66,0.00023589,10]
[380335421,1755693032568,-341.39,0.00023589,10]
[380335422,1755693032577,-284.49,0.00023589,10]
[380335423,1755693032586,-2229.22,0.0002359,3]
[380335424,1755693032595,-1629.93,0.0002359,3]
[380335425,1755693032604,-814.96,0.0002359,3]
[380335426,1755693032614,-407.48,0.0002359,3]
[380335427,1755693032623,-203.74,0.0002359,3]
[380335428,1755693032632,-611.25,0.0002359,3]
[380335429,1755693032641,-6000.0,0.00023596,3]
[380335430,1755693032650,-500.0,0.00023599,2]
[380335431,1755693032659,-500.0,0.00023599,2]
[380335432,1755693032668,-237.85986849,0.00023599,2]
[380335433,1755693032678,-500.0,0.00023599,2]
[380335434,1755693032687,-500.0,0.00023599,2]
[380335435,1755693032696,-500.0,0.00023599,2]
[380335436,1755693032706,-500.0,0.00023599,2]
[380335437,1755693032715,-500.0,0.00023599,2]
[380335438,1755693032724,-500.0,0.00023599,2]
[380335439,1755693032733,-500.0,0.00023599,2]
[380335440,1755693032743,-500.0,0.00023599,2]
[380335441,1755693032752,-500.0,0.00023599,2]
[380335442,1755693032761,-500.0,0.00023599,2]
[380335443,1755693032770,-500.0,0.00023599,2]
[380335444,1755693032779,-500.0,0.00023599,2]
[380335445,1755693032788,-500.0,0.00023599,2]
[380335446,1755693032797,-500.0,0.00023599,2]
[380335447,1755693032806,-500.0,0.00023599,2]
[380335448,1755693032816,-500.0,0.00023599,2]
[380335449,1755693032825,-500.0,0.00023599,2]
[380335450,1755693032835,-500.0,0.00023599,2]
[380335451,1755693032844,-500.0,0.00023599,2]
[380335452,1755693032853,-500.0,0.00023599,2]
[380335453,1755693032862,-500.0,0.00023599,2]
[380335454,1755693032871,-549.84473234,0.00023599,2]
[380335455,1755693032881,-500.0,0.00023599,2]
[380335456,1755693032890,-511.39348957,0.00023599,2]
[380335457,1755693032900,-239.72017329,0.00023599,2]
[380335458,1755693032909,-500.0,0.00023599,2]
[380335459,1755693032918,-500.0,0.00023599,2]
[380335460,1755693032927,-500.0,0.00023599,2]
[380335461,1755693032936,-500.0,0.00023599,2]
[380335462,1755693032946,-500.0,0.00023599,2]
[380335463,1755693032955,-500.0,0.00023599,2]
[380335464,1755693032964,-500.0,0.00023599,2]
[380335465,1755693032974,-500.0,0.00023599,2]
[380335466,1755693032983,-500.0,0.00023599,2]
[380335467,1755693032993,-500.0,0.00023599,2]
[380335468,1755693033002,-500.0,0.00023599,2]
[380335469,1755693033012,-500.0,0.00023599,2]
[380335470,1755693033021,-500.0,0.00023599,2]
[380335471,1755693033031,-500.0,0.00023599,2]
[380335472,1755693033040,-500.0,0.00023599,2]
[380335473,1755693033050,-500.0,0.00023599,2]
[380335474,1755693033059,-593.3720087,0.00023599,2]
[380335475,1755693033070,-500.0,0.00023599,2]
[380335476,1755693033080,-500.0,0.00023599,2]
[380335477,1755693033089,-571.79295581,0.00023599,2]
[380335478,1755693033098,-500.0,0.00023599,2]
[380335479,1755693033108,-500.0,0.00023599,2]
[380335480,1755693033119,-500.0,0.00023599,2]
[380335481,1755693033134,-572.79764651,0.00023599,2]
[380335482,1755693033145,-1000.0,0.00023599,2]
[380335483,1755693033155,-1174.314474,0.000236,2]
[380335484,1755693033165,-237803.99851245,0.000236,2]
[380335485,1755693033178,-2064.5055936,0.000236,2]
[380335553,1755693037770,-199.0,0.00023096,2]
[380335554,1755693037780,-271.02618797,0.000236,2]
[380335555,1755693037792,-10371.66421962,0.000236,2]
[380335556,1755693037803,-1000.51947812,0.000236,2]
[380335557,1755693037813,-742.91256373,0.000236,2]
[380335558,1755693037825,-312.16666667,0.000236,2]
[380335559,1755693037836,-2898.00000489,0.000236,2]
[380335560,1755693037847,-11385.0,0.000236,2]
[380335561,1755693037859,-1630.92101454,0.000236,2]
[380335562,1755693037870,-101519.28575841,0.000236,2]
[380335563,1755693037879,-5387.08,0.000236,7]
[380335564,1755693037889,-1076.18,0.000236,7]
[380335565,1755693037899,-8099.33,0.000236,7]
[380335566,1755693037909,-417.15472785,0.000236,7]
[380335568,1755693037919,-528.77847288,0.000236,7]
[380335570,1755693037928,-244519.70666217,0.000236,2]
[380335572,1755693037938,-215.82729805,0.000236,7]
[380335574,1755693037947,-375.94359665,0.000236,7]
[380335575,1755693037956,-12687.94051737,0.000236,7]
[380335576,1755693037966,-160.0,0.000236,7]
[380335577,1755693037975,-1138.04741344,0.00023642,2]
[380335578,1755693037984,-1023.52446353,0.00023663,2]
[380335579,1755693037993,-480.0,0.00023729,2]
[380335580,1755693038004,-480.0,0.00023729,2]
[380335581,1755693038013,-480.0,0.00023729,2]
[380335582,1755693038023,-480.0,0.00023729,2]
[380335583,1755693038032,-480.0,0.00023729,2]
[380335584,1755693038041,-2916.66,0.00023745,2]
[380335585,1755693038050,-152.7,0.0002377,5]
[380335586,1755693038060,-749.88962704,0.00023825,2]
[380335587,1755693038069,-501.61147393,0.00023873,2]
[380335588,1755693038078,-500.52305043,0.00023873,2]
[380335589,1755693038088,-500.0,0.00023873,2]
[380335590,1755693038097,-11036.40219271,0.000239,4]
[380335591,1755693038106,-20970.63,0.000239,4]
[380335592,1755693038117,-11024.14,0.000239,4]
[380335593,1755693038130,-379519.28,0.000239,4]
[380335594,1755693038140,-33862.0,0.000239,4]
[380335595,1755693038149,-239.95785,0.000239,7]
[380335596,1755693038158,-151.0,0.000239,7]
[380335597,1755693038168,-160.0,0.000239,2]
[380335598,1755693038178,-151.0,0.000239,7]
[380335599,1755693038187,-208.0,0.00023924,2]
[380335600,1755693038196,-216.9170744,0.00023968,2]
[380335601,1755693038206,-232.24568399,0.00023968,2]
[380335602,1755693038217,-375.94359665,0.00023968,2]
[380335603,1755693038226,-528.77847288,0.00023968,2]
[380335604,1755693038235,-160.0,0.00023968,2]
[380335605,1755693038244,-160.0,0.00023968,2]
[380335606,1755693038254,-844.05985274,0.00023968,2]
[380335607,1755693038262,-215.82729805,0.00023968,2]
[380335608,1755693038271,-160.0,0.00023983,2]
[380335609,1755693038280,-844.05985274,0.00024,7]
[380335610,1755693038290,-30316.249655,0.00024,15]
[380335611,1755693038299,-160.0,0.00024,7]
[380335612,1755693038308,-232.24568399,0.00024,7]
[380335613,1755693038317,-216.9170744,0.00024,7]
[380335614,1755693038327,-160.0,0.00024,7]
[380335615,1755693038335,-480.0,0.00024003,2]
[380335616,1755693038345,-597.46735202,0.00024003,2]
[380335617,1755693038354,-480.0,0.00024003,2]
[380335618,1755693038363,-439.23,0.00024003,2]
[380335619,1755693038373,-480.0,0.00024003,2]
[380335620,1755693038382,-152.7,0.00024018,5]
[380335621,1755693038391,-2916.66,0.00024019,2]
[380335622,1755693038401,-168.0,0.00024049,2]
[380335623,1755693038409,-208.0,0.00024053,2]
[380335624,1755693038419,-168.0,0.00024061,2]
[380335625,1755693038428,-973.0,0.00024133,2]
[380335626,1755693038437,-2154.0,0.00024133,2]
[380335627,1755693038446,-637.0,0.00024133,2]
[380335628,1755693038455,-408.0,0.00024133,2]
[380335629,1755693038466,-749.88962704,0.0002415,2]
[380335630,1755693038475,-161.0,0.00024164,7]
[380335631,1755693038485,-1000.0,0.00024168,2]
[380335632,1755693038496,-1000.0,0.00024168,2]
[380335633,1755693038513,-1000.0,0.00024168,2]
[380335634,1755693038522,-473.0,0.00024168,2]
[380335635,1755693038533,-243.89168695,0.00024168,2]
[380335636,1755693038543,-151.0,0.00024168,2]
[380335637,1755693038553,-2183.31810187,0.00024168,2]
[380335638,1755693038562,-151.0,0.00024168,2]
[380335639,1755693038572,-203.82073721,0.00024168,2]
[380335640,1755693038581,-151.0,0.00024168,2]
[380335641,1755693038590,-151.0,0.00024168,2]
[380335642,1755693038599,-151.0,0.00024168,2]
[380335643,1755693038608,-151.0,0.00024168,2]
[380335644,1755693038617,-151.0,0.00024168,2]
[380335645,1755693038627,-151.0,0.00024168,2]
[380335646,1755693038637,-151.0,0.00024168,2]
[380335647,1755693038648,-151.0,0.00024168,2]
[380335648,1755693038658,-151.0,0.00024168,2]
[380335649,1755693038667,-151.0,0.00024168,2]
[380335650,1755693038676,-151.0,0.00024168,2]
[380335651,1755693038686,-151.0,0.00024168,2]
[380335652,1755693038696,-151.0,0.00024168,2]
[380335653,1755693038705,-151.0,0.00024168,2]
[380335654,1755693038716,-1023.52446353,0.00024231,2]
[380335655,1755693038725,-168.0,0.0002426,2]
[380335656,1755693038735,-152.7,0.00024266,5]
[380335657,1755693038745,-300.0,0.00024275,20]
[380335658,1755693038754,-300.0,0.00024275,20]
[380335659,1755693038764,-480.0,0.00024277,2]
[380335660,1755693038773,-480.0,0.00024277,2]
[380335661,1755693038782,-523.56,0.00024277,2]
[380335662,1755693038791,-2916.66,0.00024293,2]
[380335663,1755693038800,-549.6164095,0.00024301,2]
[380335664,1755693038809,-150.0,0.00024345,2]
[380335665,1755693038819,-151.0,0.000244,10]
[380335666,1755693038828,-652.0,0.000244,2]
[380335667,1755693038838,-260.0,0.00024448,2]
[380335668,1755693038847,-749.88962704,0.00024475,2]
[380335669,1755693038857,-151.0,0.000245,9]
[380335670,1755693038866,-168.0,0.00024507,2]
[380335671,1755693038876,-152.7,0.00024514,6]
[380335672,1755693038886,-195.38,0.00024528,7]
[380335673,1755693038895,-480.0,0.00024551,2]
[380335674,1755693038904,-480.0,0.00024551,2]
[380335675,1755693038914,-2916.66,0.00024567,2]
[380335676,1755693038924,-151.0,0.000246,5]
[380335677,1755693038933,-195.38,0.00024628,7]
[380335678,1755693038943,-280.0,0.00024658,2]
[380335679,1755693038952,-168.0,0.00024688,2]
[380335680,1755693038962,-168.0,0.00024696,2]
[380335681,1755693038972,-151.0,0.000247,9]
[380335682,1755693038981,-151.0,0.000247,5]
[380335683,1755693038990,-2351.1135989,0.000247,2]
[380335684,1755693038999,-195.38,0.00024728,7]
[380335685,1755693039009,-168.0,0.00024757,2]
[380335686,1755693039018,-152.7,0.00024761,6]
[380335687,1755693039027,-168.0,0.0002477,2]
[380335688,1755693039036,-500.0,0.00024773,2]
[380335689,1755693039045,-500.0,0.00024773,2]
[380335690,1755693039054,-1023.52446353,0.00024798,2]
[380335691,1755693039063,-3000.0,0.000248,2]
[380335692,1755693039073,-151.0,0.000248,8]
[380335693,1755693039082,-151.0,0.000248,9]
[380335694,1755693039090,-5387.08,0.000248,7]
[380335695,1755693039099,-1076.18,0.000248,7]
[380335696,1755693039215,-151.0,0.000248,7]
[380335697,1755693039226,-151.0,0.000248,7]
[380335698,1755693039236,-151.0,0.000248,7]
[380335699,1755693039246,-151.0,0.000248,7]
[380335700,1755693039255,-749.88962704,0.000248,2]
[380335701,1755693039265,-151.0,0.000248,7]
[380335702,1755693039274,-210.792876,0.000248,7]
[380335703,1755693039283,-151.0,0.000248,7]
[380335705,1755693039292,-151.0,0.000248,7]
[380335706,1755693039301,-199.0,0.000248,7]
[380335707,1755693039311,-2775.09520455,0.000248,2]
[380335708,1755693039320,-151.0,0.000248,7]
[380335709,1755693039330,-151.0,0.000248,7]
[380335710,1755693039339,-151.0,0.000248,7]
[380335711,1755693039348,-151.0,0.000248,7]
[380335713,1755693039358,-151.0,0.000248,7]
[380335715,1755693039368,-151.0,0.000248,7]
[380335717,1755693039378,-151.0,0.000248,7]
[380335719,1755693039387,-151.0,0.000248,7]
[380335721,1755693039397,-151.0,0.000248,7]
[380335723,1755693039406,-3000.0,0.0002481,2]
[380335724,1755693039416,-3000.0,0.0002482,2]
[380335725,1755693039426,-480.0,0.00024825,2]
[380335726,1755693039435,-480.0,0.00024825,2]
[380335727,1755693039445,-195.38,0.00024828,7]
[380335728,1755693039454,-3000.0,0.0002483,2]
[380335729,1755693039463,-3000.0,0.0002484,2]
[380335730,1755693039473,-2916.66,0.00024841,2]
[380335731,1755693039482,-3000.0,0.0002485,2]
[380335732,1755693039491,-3000.0,0.0002486,2]
[380335733,1755693039501,-3000.0,0.0002487,2]
[380335734,1755693039510,-3000.0,0.0002488,2]
[380335735,1755693039519,-420.0,0.00024885,2]
[380335736,1755693039529,-200.0,0.0002489,2]
[380335737,1755693039539,-3000.0,0.0002489,2]
[380335738,1755693039548,-3000.0,0.000249,2]
[380335739,1755693039558,-8099.33,0.000249,7]
[380335740,1755693039567,-151.0,0.000249,7]
[380335741,1755693039576,-151.0,0.000249,7]
[380335742,1755693039586,-151.0,0.000249,7]
[380335743,1755693039595,-177.108803,0.000249,7]
[380335744,1755693039605,-151.0,0.000249,7]
[380335745,1755693039615,-151.0,0.000249,7]
[380335746,1755693039625,-151.0,0.000249,7]
[380335747,1755693039634,-151.0,0.000249,7]
[380335748,1755693039643,-151.0,0.000249,7]
[380335749,1755693039652,-587408.14938462,0.000249,2]
[380335750,1755693039665,-1222.39634548,0.000249,2]
[380335751,1755693039735,-237.07,0.0002359,10]
[380335752,1755693039745,-86293.3615289,0.000249,2]
[380335753,1755693039754,-151.0,0.000249,7]
[380335754,1755693039763,-151.0,0.000249,7]
[380335755,1755693039772,-151.0,0.000249,7]
[380335756,1755693039782,-153.9889,0.000249,7]
[380335757,1755693039791,-151.0,0.000249,7]
[380335758,1755693039800,-151.0,0.000249,7]
[380335759,1755693039809,-11482.98842533,0.000249,7]
[380335760,1755693039819,-168.0,0.00024904,2]
[380335761,1755693039829,-3000.0,0.0002491,2]
[380335762,1755693039838,-195.38,0.00024928,7]
[380335763,1755693039847,-168.0,0.00024944,2]
[380335764,1755693039856,-4458.44,0.0002496,3]
[380335765,1755693039865,-3259.86,0.0002496,3]
[380335766,1755693039874,-1629.92,0.0002496,3]
[380335767,1755693039883,-814.96,0.0002496,3]
[380335768,1755693039892,-407.48,0.0002496,3]
[380335769,1755693039901,-360.0,0.00024996,2]
[380335770,1755693039913,-152.7,0.00025009,6]
[380335771,1755693039924,-200.0,0.0002501,12]
[380335772,1755693039934,-195.38,0.00025028,7]
[380335773,1755693039943,-386.7798227,0.00025031,2]
[380335774,1755693039955,-386.7798227,0.00025031,2]
[380335775,1755693039965,-2775.09520449,0.00025052,2]
[380335776,1755693039974,-168.0,0.00025053,2]
[380335777,1755693039984,-208.0,0.00025094,2]
[380335778,1755693039993,-536.32,0.00025099,2]
[380335779,1755693040002,-76.15568183,0.00025099,2]
[380335780,1755693040062,-286.56431817,0.00025099,2]
[380335781,1755693040072,-2916.66,0.00025115,2]
[380335782,1755693040083,-195.38,0.00025128,7]
[380335783,1755693040093,-250.0,0.00025204,2]
[380335784,1755693040104,-168.0,0.00025214,2]
[380335785,1755693040117,-4656.55803194,0.00025219,2]
[380335786,1755693040131,-195.38,0.00025228,7]
[380335787,1755693040142,-152.7,0.00025257,6]
[380335788,1755693040153,-326.0,0.00025267,3]
[380335789,1755693040164,-324.0,0.00025267,3]
[380335790,1755693040174,-208.0,0.00025281,2]
[380335791,1755693040184,-153.0,0.00025297,2]
[380335792,1755693040195,-153.0,0.00025297,2]
[380335793,1755693040206,-2775.09520449,0.00025304,2]
[380335794,1755693040219,-195.38,0.00025328,7]
[380335795,1755693040228,-526.94486111,0.0002535,2]
[380335796,1755693040238,-1023.52446353,0.00025366,2]
[380335797,1755693040247,-2916.66,0.00025389,2]
[380335798,1755693040256,-433.0,0.00025393,2]
[380335799,1755693040265,-2200.0,0.00025427,2]
[380335800,1755693040275,-500.0,0.00025427,2]
[380335801,1755693040285,-195.38,0.00025428,7]
[380335802,1755693040294,-218.80414867,0.00025487,2]
[380335803,1755693040304,-152.7,0.00025505,6]
[380335804,1755693040314,-195.38,0.00025528,7]
[380335805,1755693040323,-151.0,0.00025537,2]
[380335806,1755693040332,-460.0,0.00025544,2]
[380335807,1755693040341,-1625.71841419,0.00025556,2]
[380335811,1755693042902,-441.35633051,0.00025556,2]
[380335812,1755693042914,-708.02045979,0.00025556,2]
[380335813,1755693042923,-168.0,0.00025594,2]
[380335814,1755693042932,-417.15472785,0.000256,3]
[380335815,1755693042942,-232.24568399,0.000256,3]
[380335817,1755693042951,-284.58147837,0.000256,3]
[380335819,1755693042962,-244.19699451,0.000256,3]
[380335822,1755693042972,-184.97300549,0.000256,3]
[380335824,1755693042983,-30.85429256,0.000256,3]
[380335826,1755693042992,-375.94359665,0.000256,3]
[380335828,1755693043001,-216.9170744,0.000256,3]
[380335830,1755693043010,-160.0,0.000256,3]
[380335832,1755693043019,-195.38,0.00025628,7]
[380335834,1755693043029,-918.37703639,0.00025663,2]
[380335858,1755693045803,-1811.14230045,0.00023499,2]
[380335859,1755693045814,-1898.52933,0.00023499,2]
[380335860,1755693045829,-7435.41904716,0.00023499,2]
[380335861,1755693045840,-2281.37095284,0.00023499,2]
[380335870,1755693208638,940.01325457,0.000199,2]
[380335871,1755693241356,182.3790886,0.00027397,120]
[380335873,1755693380140,814.67815403,0.000199,2]
[380335874,1755693433304,163.130761,0.00013699,2]
[380335876,1755693558879,527.39282863,0.000199,2]
[380335885,1755693723721,509.81306755,0.000199,2]
[380335886,1755693896660,492.81929868,0.000199,2]
[380335887,1755694077522,476.39198884,0.000199,2]
[380335900,1755694231977,-163.130761,0.00020548,2]
[380335901,1755694231987,-476.3919886,0.00020835,2]
[380335902,1755694231996,-476.3919886,0.00021771,2]
[380335903,1755694232006,-476.3919886,0.00022706,2]
[380335904,1755694232016,-1663.12,0.00022978,2]
[380335905,1755694232029,-480.0,0.00022999,2]
[380335907,1755694232039,-1663.12,0.00023252,2]
[380335909,1755694232047,-232.24568399,0.00023293,2]
[380335910,1755694232056,-375.94359665,0.00023293,2]
[380335911,1755694232066,-844.05985274,0.00023293,2]
[380335912,1755694232075,-160.0,0.00023293,2]
[380335913,1755694232083,-160.0,0.00023293,2]
[380335914,1755694232091,-160.0,0.00023298,2]
[380335915,1755694232100,-199.0,0.00023399,2]
[380335916,1755694232109,-399.51132864,0.000234,2]
[380335917,1755694232119,-783.70453298,0.000234,2]
[380335918,1755694232128,-500.0,0.00023473,2]
[380335919,1755694232137,-501.43765191,0.00023473,2]
[380335921,1755694232146,-504.31630005,0.00023473,2]
[380335922,1755694232166,-500.0,0.00023473,2]
[380335924,1755694232176,-228.35503821,0.00023473,2]
[380335926,1755694232185,-500.0,0.00023473,2]
[380335927,1755694232194,-500.0,0.00023473,2]
[380335928,1755694232203,-265.85,0.00023489,3]
[380335929,1755694232212,-797.57,0.00023489,3]
[380335931,1755694232224,-197.56,0.00023489,10]
[380335933,1755694232234,-164.64,0.00023489,10]
[380335935,1755694232244,-160.0,0.00023492,2]
[380335936,1755694232253,-216.9170744,0.00023492,2]
[380335938,1755694232262,-482.96703767,0.00023497,2]
[380335939,1755694232272,-229.38165937,0.00023498,2]
[380335940,1755694232281,-500.0,0.00023498,2]
[380335941,1755694232290,-500.0,0.00023498,2]
[380335942,1755694232300,-500.0,0.00023498,2]
[380335943,1755694232310,-482.39588809,0.00023498,2]
[380335944,1755694232319,-230.31084961,0.00023498,2]
[380335945,1755694232328,-500.0,0.00023498,2]
[380335946,1755694232339,-500.0,0.00023498,2]
[380335947,1755694232349,-500.0,0.00023498,2]
[380335948,1755694232358,-500.0,0.00023498,2]
[380335949,1755694232367,-500.0,0.00023498,2]
[380335950,1755694232376,-500.0,0.00023498,2]
[380335951,1755694232385,-500.0,0.00023498,2]
[380335952,1755694232395,-278.24631205,0.00023498,2]
[380335953,1755694232403,-295.08413256,0.00023498,2]
[380335954,1755694232412,-557.76594675,0.00023498,2]
[380335955,1755694232422,-619.19,0.00023498,2]
[380335956,1755694232431,-284052.61083033,0.00023499,2]
[380336003,1755694238154,-199.0,0.00023399,2]
[380336005,1755694238163,-655.47620674,0.00023499,2]
[380336007,1755694238175,-12540.39988137,0.00023499,2]
[380336490,1755694243121,-391.45169507,0.00023499,2]
[380336773,1755694246107,-658.21204395,0.00023499,2]
[380336854,1755694248017,412.86989141,0.000199,2]
[380336897,1755694260887,949.0,0.00027397,120]
[380336899,1755694360738,157.0,0.0002,2]
[380336900,1755694361652,157.0,0.0002,2]
[380336901,1755694412671,399.4209549,0.000199,2]
[380336902,1755694443835,157.0,0.0002,3]
[380336904,1755694580238,386.10692307,0.000199,2]
[380336906,1755694683882,164.435523,0.00013699,2]
[380336907,1755694744600,373.23669233,0.000199,2]
[380336911,1755694825090,5000.0,0.0002,2]
[380336912,1755694910001,360.79546932,0.000199,2]
[380336913,1755695111179,349.12002306,0.000199,2]
[380336914,1755695193122,-179.34252224,0.00020835,2]
[380336915,1755695293026,331.50460498,0.000199,2]
[380336936,1755695432383,-341.12720039,0.00020735,2]
[380336965,1755695438235,-199.0,0.00020635,2]
[380336966,1755695438245,-595.61667835,0.00020735,2]
[380336980,1755695440163,-1278.74162534,0.00020735,2]
[380336981,1755695440173,-199.0,0.00020735,2]
[380336982,1755695440184,-331.50460476,0.00020835,2]
[380336983,1755695440193,-164.435523,0.00020951,2]
[380336984,1755695440203,-331.50460476,0.00021771,2]
[380336985,1755695440212,-160.0,0.00022,2]
[380336986,1755695440222,-669.0,0.00022108,2]
[380336987,1755695440232,-300.0,0.00022108,2]
[380336988,1755695440241,-300.0,0.00022108,2]
[380336989,1755695440250,-300.0,0.00022108,2]
[380336990,1755695440260,-300.0,0.00022108,2]
[380336991,1755695440269,-637.0,0.0002211,2]
[380336992,1755695440278,-160.0,0.00022111,2]
[380336993,1755695440288,-160.0,0.00022111,2]
[380336995,1755695440298,-844.05985274,0.00022111,2]
[380336996,1755695440310,-216.9170744,0.00022111,2]
[380336998,1755695440321,-232.24568399,0.00022111,2]
[380337000,1755695440331,-215.82729805,0.00022112,2]
[380337001,1755695440340,-29.4206924,0.00022112,2]
[380337002,1755695440352,-346.52290425,0.00022112,2]
[380337003,1755695440362,-157.57769083,0.000222,69]
[380337004,1755695440371,-337.16545391,0.00022989,2]
[380337005,1755695440380,-68.88025099,0.00022989,2]
[380337006,1755695440392,-411.11974901,0.00022989,2]
[380337007,1755695440401,-1429.66,0.00022989,2]
[380337008,1755695440410,-7755.65965828,0.0002299,2]
[380337009,1755695440421,-62757.59280947,0.0002299,2]
[380337010,1755695440433,-853.1100368,0.0002299,2]
[380337011,1755695440444,-991.95815471,0.0002299,2]
[380337012,1755695440454,-160.0,0.00023,2]
[380337013,1755695440463,-383.82167385,0.00023013,2]
[380337014,1755695440475,-386.7798227,0.00023113,2]
[380337015,1755695440485,-386.7798227,0.00023113,2]
[380337016,1755695440494,-386.7798227,0.000232,2]
[380337017,1755695440504,-1429.66,0.00023263,2]
[380337018,1755695440513,-271.64496179,0.00023373,2]
[380337019,1755695440522,-265.85,0.00023389,3]
[380337020,1755695440532,-797.55,0.00023389,3]
[380337021,1755695440541,-823.2,0.00023389,10]
[380337022,1755695440550,-522.46968864,0.00023397,2]
[380337023,1755695440560,-481.53309852,0.00023398,2]
[380337024,1755695440571,-197.58292356,0.00023398,2]
[380337025,1755695440581,-199.45379251,0.00023398,2]
[380337026,1755695440590,-587.157237,0.00023399,2]
[380337027,1755695440601,-199.0,0.00023399,2]
[380337028,1755695440611,-26907.55660944,0.00023399,2]
[380337029,1755695440623,-423.67577278,0.00023399,2]
[380337034,1755695443305,-2270.0,0.00023399,2]
[380337140,1755695446188,-2038.18878995,0.00023399,2]
[380337158,1755695446356,-11723.2822912,0.00023399,2]
[380337428,1755695458560,298.3541444,0.000199,2]
[380337429,1755695645018,288.59179277,0.000199,2]
[380337430,1755695669336,164.435523,0.00013699,2]
[380337431,1755695837774,278.96633331,0.000199,2]
[380337432,1755696005151,270.23814849,0.000199,2]
[380337433,1755696046255,637.46547473,0.0002739,120]
[380337435,1755696178024,261.23021012,0.000199,2]
[380337436,1755696343537,252.52253643,0.000199,2]
[380337437,1755696509475,244.10511852,0.000199,2]
[380337438,1755696516023,23087.80798806,0.00027161,120]
[380337439,1755696516840,30000.0,0.00027161,120]
[380337496,1755696632737,-5000.0,0.00020421,2]
[380337497,1755696632747,-300.0,0.00021668,2]
[380337498,1755696632757,-139.10524137,0.00021668,2]
[380337499,1755696632769,-699.79020707,0.00021668,2]
[380337500,1755696632780,-361.10455156,0.00021668,2]
[380337501,1755696632790,-713.63711325,0.00021669,2]
[380337502,1755696632802,-13898.50153323,0.00021669,2]
[380337503,1755696632815,-463.66376798,0.00021669,2]
[380337532,1755696638317,-19125.30989227,0.00021669,2]
[380337539,1755696638377,-32030.31732667,0.00021669,2]
[380337541,1755696638387,-751.14782743,0.000219,2]
[380337543,1755696638396,-164.435523,0.00021918,2]
[380337545,1755696638406,-503.38769744,0.00021973,2]
[380337547,1755696638415,-500.0,0.00021973,2]
[380337549,1755696638424,-504.46079045,0.00021973,2]
[380337551,1755696638433,-1152.72,0.0002198,3]
[380337553,1755696638442,-576.36,0.0002198,3]
[380337555,1755696638452,-288.18,0.0002198,3]
[380337557,1755696638461,-864.56,0.0002198,3]
[380337559,1755696638471,-490.32,0.0002198,3]
[380337561,1755696638483,-245.16,0.0002198,3]
[380337563,1755696638492,-204.3,0.0002198,3]